bitfinex-derivatives/quotes_SOLF0:USTF0_20241011
["timestamp","ask_amount","ask_price","bid_price","bid_amount"]
[1728663957512,10.66,144.13,144.09,10.66]
[1728663957714,10.66,144.13,144.08,6.18112719]
[1728663957715,10.66,144.13,144.1,5.27043874]
[1728663957910,10.66,144.13,144.08,16.84112719]
[1728663958111,10.66,144.13,144.09,5.27064326]
[1728663958413,10.66,144.13,144.1,5.27064326]
[1728663958711,10.66,144.13,144.08,16.84112719]
[1728663958913,3.4703,144.11,144.09,5.27084791]
[1728663959111,3.4703,144.11,144.08,16.84112719]
[1728663959417,3.4703,144.11,144.09,5.27087666]
[1728663959716,3.4703,144.11,144.1,5.27087666]
[1728663961821,3.4703,144.11,144.1,5.27186261]
[1728663964317,3.4698,144.12,144.1,15.93186261]
[1728663964518,3.4698,144.12,144.11,5.68]
[1728663965515,10.66,144.15,144.11,5.68]
[1728663965716,0.12502,144.17,144.14,10.66]
[1728663966639,10.66,144.15,144.1,10.66]
[1728663966815,10.66,144.15,144.11,10.95371127]
[1728663967016,10.66,144.16,144.12,5.27371127]
[1728663967322,10.66,144.16,144.13,5.27371127]
[1728663967620,10.66,144.16,144.12,5.68]
[1728663967817,3.4696,144.13,144.12,5.68]
[1728663968125,3.4696,144.13,144.12,10.9533916]
[1728663968423,3.4696,144.13,144.12,21.6133916]
[1728663968721,3.4694,144.14,144.12,16.34]
[1728663968913,3.4694,144.14,144.12,21.61338891]
[1728663969120,3.4694,144.14,144.13,5.27338891]
[1728663970219,3.4696,144.13,144.12,5.68]
[1728663972320,10.78502,144.17,144.12,16.34]
[1728663972625,3.4694,144.14,144.12,16.34]
[1728663972924,10.78502,144.17,144.12,16.34]
[1728663973123,3.4696,144.13,144.12,5.68]
[1728663973325,3.4696,144.13,144.12,10.95459727]
[1728663974733,3.4696,144.13,144.12,5.27459727]
[1728663975827,14.1296,144.13,144.12,5.27459727]
[1728663976019,10.66,144.13,144.08,16.32]
[1728663976422,10.66,144.13,144.09,5.27773891]
[1728663976622,15.36822,144.17,144.1,5.27773891]
[1728663976825,10.66,144.14,144.09,10.66]
[1728663977020,12.72242,144.17,144.1,15.93704897]
[1728663977228,10.66,144.15,144.11,5.27704897]
[1728663977428,10.66,144.15,144.1,10.66]
[1728663977622,3.4699,144.12,144.11,5.27750837]
[1728663979127,3.4704,144.1,144.08,9.20674925]
[1728663979327,10.66,144.14,144.09,5.2802342]
[1728663979628,10.66,144.13,144.1,5.2802342]
[1728663979826,3.4698,144.12,144.11,5.2802342]
[1728663980228,10.66,144.13,144.08,19.86674925]
[1728663980426,3.4698,144.12,144.09,5.28133031]
[1728663980626,10.66,144.13,144.1,5.28133031]
[1728663980928,3.4698,144.12,144.11,5.28133031]
[1728663983934,10.66,144.13,144.08,23.33754925]
[1728663984135,10.66,144.16,144.11,10.66]
[1728663984326,10.66,144.16,144.12,5.2837437]
[1728663984532,10.66,144.15,144.13,5.2837437]
[1728663984729,10.66,144.14,144.09,12.0909]
[1728663984934,10.66,144.15,144.1,15.94486495]
[1728663985134,3.4698,144.12,144.11,5.28486495]
[1728663985434,10.66,144.15,144.11,5.28486495]
[1728663985629,10.66,144.15,144.12,5.28486495]
[1728663985834,3.4693,144.14,144.13,5.28486495]
[1728663987741,3.4697,144.13,144.1,10.66]
[1728663988241,3.4697,144.13,144.11,5.29059063]
[1728663988441,3.4697,144.13,144.12,5.29059063]
[1728663991340,3.4697,144.13,144.04,15.83974646]
[1728663991341,16.32,144.13,144.04,15.83974646]
[1728663991637,14.1312,144.06,144.0,4.80010249]
[1728663991838,14.1312,144.06,144.0,1.3866]
[1728663992435,3.4712,144.06,144.0,1.3866]
[1728663992641,14.1312,144.06,144.0,1.3866]
[1728663993940,3.4712,144.06,144.02,10.66]
[1728663994431,3.4712,144.06,144.0,21.46337105]
[1728663994630,3.4712,144.06,144.03,5.68]
[1728663995034,25.74114558,144.1,144.03,5.68]
[1728663995237,3.4712,144.07,144.03,5.68]
[1728663995433,5.68,144.1,144.03,5.68]
[1728663995641,3.4708,144.08,144.04,3.4717]
[1728663995845,3.4708,144.08,144.03,5.68]
[1728663996345,3.4708,144.08,144.03,9.1518]
[1728663997551,1.4126,144.12,144.04,16.66]
[1728663997740,1.4126,144.12,144.05,1.52372]
[1728663998142,3.4702,144.11,144.07,3.4708]
[1728663998447,3.4702,144.11,144.07,9.1508]
[1728663999041,3.4699,144.12,144.08,3.4707]
[1728663999246,3.4699,144.12,144.08,20.1307]
[1728664000945,1.3723,144.16,144.08,20.14508129]
[1728664001151,3.4696,144.13,144.09,3.4704]
[1728664002846,3.4696,144.13,144.08,20.14508129]
[1728664003053,3.4695,144.14,144.1,3.4701]
[1728664005956,1.3723,144.16,144.1,3.4701]
[1728664006254,3.4696,144.13,144.1,3.4701]
[1728664007462,3.4694,144.14,144.11,3.47]
[1728664007855,3.4694,144.14,144.11,5.66]
[1728664008960,1.3723,144.16,144.11,5.66]
[1728664009159,3.4696,144.13,144.11,5.66]
[1728664011265,1.3723,144.16,144.11,5.66]
[1728664011455,3.4694,144.14,144.11,5.66]
[1728664013263,3.4694,144.14,144.11,9.13]
[1728664016060,0.12502,144.17,144.11,9.13]
[1728664016365,3.4692,144.15,144.11,9.13]
[1728664016565,3.4692,144.15,144.11,19.8]
[1728664024768,3.4692,144.15,144.11,16.33]
[1728664024969,3.4692,144.15,144.13,10.67]
[1728664025167,0.12502,144.17,144.14,10.67]
[1728664025475,0.12502,144.17,144.16,14.1388]
[1728664026965,0.12502,144.17,144.15,9.129]
[1728664027463,0.12502,144.17,144.16,14.1388]
[1728664028671,0.12502,144.17,144.16,10.67]
[1728664029472,0.12502,144.17,144.15,9.129]
[1728664029765,0.12502,144.17,144.15,5.66]
[1728664029965,0.12502,144.17,144.16,10.67]
[1728664030170,0.12502,144.17,144.16,14.1388]
[1728664032870,0.12502,144.17,144.16,3.4688]
[1728664033071,0.12502,144.17,144.16,14.1388]
[1728664037079,3.4692,144.15,144.14,5.66]
[1728664037266,3.4692,144.15,144.12,3.4697]
[1728664037462,10.67,144.16,144.13,10.840658]
[1728664037673,3.4695,144.14,144.13,5.66]
[1728664037873,3.4695,144.14,144.13,10.84069116]
[1728664038976,3.4695,144.14,144.13,5.66]
[1728664039173,3.4695,144.14,144.13,10.84038405]
[1728664039373,3.4695,144.14,144.13,5.66]
[1728664039686,3.4695,144.14,144.13,10.84038405]
[1728664041479,3.4691,144.15,144.13,21.51038405]
[1728664041671,0.12502,144.17,144.13,16.33]
[1728664042179,3.469,144.16,144.13,19.7994]
[1728664043575,0.12502,144.17,144.15,10.67]
[1728664043876,0.12502,144.17,144.14,10.67]
[1728664044078,3.469,144.16,144.14,10.67]
[1728664045080,3.4691,144.15,144.13,5.66]
[1728664045381,10.67,144.15,144.12,5.66]
[1728664045682,3.469,144.16,144.12,19.7997]
[1728664045882,3.469,144.16,144.12,16.33]
[1728664046477,3.469,144.16,144.13,14.1394]
[1728664047485,14.26372,144.17,144.13,14.1394]
[1728664047686,0.12502,144.17,144.15,14.1391]
[1728664047879,0.12502,144.17,144.12,5.66]
[1728664048080,0.12502,144.17,144.14,10.67]
[1728664048384,3.59382,144.17,144.14,10.67]
[1728664048584,0.12502,144.17,144.13,14.1395]
[1728664048785,0.12502,144.17,144.13,10.67]
[1728664049080,0.12502,144.17,144.16,10.67]
[1728664049485,0.12502,144.17,144.16,14.1388]
[1728664049785,0.12502,144.17,144.16,19.7988]
[1728664050381,0.12502,144.23,144.16,16.33]
[1728664050584,3.4675,144.22,144.19,10.67]
[1728664052187,3.4674,144.22,144.19,14.138]
[1728664052783,3.4674,144.22,144.19,10.67]
[1728664054992,0.12502,144.23,144.2,10.67]
[1728664055291,0.12502,144.23,144.2,14.1378]
[1728664057191,0.12502,144.23,144.11,0.12502]
[1728664057192,10.67,144.21,144.11,0.12502]
[1728664057389,5.66,144.22,144.12,5.17093863]
[1728664057390,10.67,144.15,144.12,5.17093863]
[1728664057584,10.67,144.15,144.11,0.12502]
[1728664058182,14.1392,144.15,144.11,0.12502]
[1728664058491,10.67,144.14,144.11,0.12502]
[1728664059189,10.67,144.15,144.11,0.12502]
[1728664059691,3.4693,144.15,144.11,14.26502]
[1728664059894,10.67,144.16,144.11,10.79502]
[1728664060493,20.14707076,144.18,144.11,0.12502]
[1728664060690,16.67,144.18,144.11,0.12502]
[1728664061091,3.4689,144.16,144.11,0.12502]
[1728664061295,16.67,144.18,144.11,0.12502]
[1728664061589,16.67,144.18,144.06,2.6674]
[1728664061590,3.4703,144.1,144.02,3.4721]
[1728664061787,16.67,144.1,144.02,1.3528]
[1728664061987,16.67,144.1,144.02,6.9928]
[1728664062494,3.4711,144.07,144.02,6.9928]
[1728664063088,3.4711,144.07,144.02,10.465]
[1728664063284,3.4712,144.06,144.02,6.9928]
[1728664063599,3.4712,144.06,144.05,5.31092063]
[1728664064695,3.4704,144.1,144.05,5.31092063]
[1728664064896,22.31,144.14,144.06,10.82590063]
[1728664065101,22.31,144.14,144.06,5.64]
[1728664065286,3.4705,144.09,144.07,5.18774211]
[1728664065486,3.4705,144.09,144.06,5.64]
[1728664065697,3.4705,144.09,144.07,5.18715753]
[1728664066000,16.67,144.12,144.06,5.64]
[1728664066194,3.471,144.08,144.07,5.18715509]
[1728664066495,16.67,144.1,144.06,5.64]
[1728664066695,16.67,144.1,144.05,0.12502]
[1728664067891,3.4712,144.07,144.05,0.12502]
[1728664068699,3.4712,144.06,144.05,0.12502]
[1728664071397,1.3243,144.11,144.05,0.12502]
[1728664072102,3.4708,144.08,144.05,0.12502]
[1728664075198,1.3243,144.11,144.05,0.12502]
[1728664075409,3.471,144.07,144.05,0.12502]
[1728664078703,1.3243,144.11,144.05,0.12502]
[1728664078908,3.4708,144.08,144.05,0.12502]
[1728664080495,3.4708,144.08,144.05,3.59652]
[1728664080994,3.471,144.07,144.05,0.12502]
[1728664085612,10.66,144.06,143.86,13.9037]
[1728664085805,6.9413,144.09,143.98,19.81104105]
[1728664086012,10.66,144.03,143.98,19.81104105]
[1728664086313,10.66,144.05,144.0,10.66]
[1728664086612,10.66,144.06,144.01,10.66]
[1728664086913,10.66,144.06,144.02,3.4722]
[1728664087307,3.4717,144.04,144.02,3.4722]
[1728664087907,3.4716,144.05,144.02,3.4722]
[1728664088214,335.1293,144.1,144.03,10.66]
[1728664088215,10.66,144.07,144.03,10.66]
[1728664089514,3.4713,144.06,144.03,14.1319]
[1728664089715,10.66,144.07,144.03,14.1319]
[1728664090209,14.1312,144.07,144.03,14.1319]
[1728664090708,10.66,144.07,144.03,14.1319]
[1728664091015,3.4713,144.06,144.03,14.1319]
[1728664091506,14.1313,144.06,144.03,3.4719]
[1728664091711,10.66,144.06,144.02,9.112]
[1728664092416,14.1313,144.06,144.03,3.4719]
[1728664094013,10.66,144.06,144.03,3.4719]
[1728664094313,14.1311,144.07,144.04,3.4716]
[1728664095022,10.66,144.07,144.03,10.66]
[1728664095321,10.66,144.1,144.05,10.66]
[1728664095817,14.1304,144.1,144.05,10.66]
[1728664096615,14.1304,144.1,144.06,3.4711]
[1728664097208,10.66,144.1,144.06,3.4711]
[1728664097414,3.4706,144.09,144.06,3.4711]
[1728664098419,14.1304,144.1,144.06,3.4711]
[1728664098718,14.1304,144.1,144.07,3.471]
[1728664100220,10.78502,144.11,144.09,3.4705]
[1728664100718,10.78502,144.11,144.07,10.66]
[1728664100916,10.78502,144.11,144.08,3.4706]
[1728664102723,14.25502,144.11,144.08,3.4706]
[1728664107221,14.25502,144.11,144.09,3.4705]
[1728664107722,0.12502,144.11,144.1,3.4703]
[1728664108126,0.12502,144.11,144.1,19.7703]
[1728664108331,10.66,144.15,144.13,3.4694]
[1728664108928,10.66,144.15,144.11,10.66]
[1728664109228,0.12502,144.17,144.14,10.66]
[1728664109428,0.12502,144.17,144.15,3.4689]
[1728664113037,0.12502,144.17,144.14,19.7692]
[1728664113227,0.12502,144.17,144.16,10.66]
[1728664113730,14.128,144.2,144.15,12.0767]
[1728664113932,10.66,144.19,144.15,12.0767]
[1728664114232,10.66,144.19,144.15,4.8857]
[1728664114432,3.4684,144.18,144.15,4.8857]
[1728664114630,10.66,144.19,144.14,9.1093]
[1728664115034,3.4685,144.18,144.14,9.1093]
[1728664116235,3.4685,144.18,144.14,5.64]
[1728664116236,10.66,144.18,144.14,5.64]
[1728664116633,16.66,144.2,144.14,5.64]
[1728664117036,3.4687,144.17,144.14,9.1093]
[1728664118035,3.4685,144.18,144.15,3.4691]
[1728664119135,0.12502,144.23,144.14,5.64]
[1728664119333,16.66,144.22,144.14,5.64]
[1728664119638,16.66,144.2,144.14,5.64]
[1728664120037,0.12502,144.23,144.14,5.64]
[1728664120242,16.66,144.21,144.14,9.1092]
[1728664120649,3.4685,144.18,144.14,9.1092]
[1728664121352,16.66,144.21,144.14,5.64]
[1728664121647,3.4687,144.17,144.14,5.64]
[1728664123452,3.4691,144.15,144.14,5.64]
[1728664124040,3.4689,144.16,144.14,5.64]
[1728664124346,16.66,144.19,144.14,5.64]
[1728664124548,3.4685,144.18,144.14,5.64]
[1728664124749,16.66,144.19,144.14,5.64]
[1728664125251,3.4688,144.17,144.14,5.64]
[1728664128148,3.4688,144.17,144.13,3.4695]
[1728664130054,1.4205,144.2,144.11,16.78502]
[1728664130352,3.4685,144.18,144.15,3.4691]
[1728664130551,3.4685,144.18,144.11,16.78502]
[1728664130752,3.4687,144.17,144.13,3.4694]
[1728664134058,3.4692,144.15,144.11,3.59492]
[1728664134261,3.4692,144.15,144.12,5.64]
[1728664135248,3.4692,144.15,144.11,0.12502]
[1728664135559,3.4694,144.14,144.11,5.76502]
[1728664135953,3.4694,144.14,144.11,9.23492]
[1728664137559,3.54854048,144.18,144.11,5.76502]
[1728664138556,1.8011,144.2,144.11,22.42502]
[1728664138759,1.4205,144.2,144.16,10.66]
[1728664138948,3.4683,144.19,144.16,10.66]
[1728664139147,1.4205,144.2,144.16,10.66]
[1728664139347,3.4682,144.19,144.16,14.1287]
[1728664141162,3.4682,144.19,144.16,3.4687]
[1728664141362,3.4682,144.19,144.15,19.7689]
[1728664142060,3.4675,144.22,144.18,14.1282]
[1728664142764,3.59232,144.23,144.19,14.1281]
[1728664143155,3.59232,144.23,144.19,16.3]
[1728664143965,3.59232,144.23,144.19,19.768]
[1728664144263,0.12502,144.23,144.19,16.3]
[1728664144764,0.12502,144.23,144.22,10.66]
[1728664145266,0.12502,144.23,144.22,14.1274]
[1728664146358,0.12502,144.29,144.24,3.4669]
[1728664146557,10.66,144.28,144.24,19.7669]
[1728664147362,14.1261,144.28,144.24,19.7669]
[1728664147864,10.66,144.28,144.26,3.4664]
[1728664148164,10.78502,144.29,144.24,16.3]
[1728664148465,14.25092,144.29,144.25,3.4666]
[1728664148657,3.59092,144.29,144.25,14.1266]
[1728664148859,0.12502,144.29,144.27,10.66]
[1728664149362,10.66,144.28,144.24,5.64]
[1728664150367,10.66,144.28,144.25,3.4666]
[1728664150969,10.78502,144.29,144.25,3.4666]
[1728664151363,10.78502,144.29,144.22,3.52226559]
[1728664151364,10.66,144.26,144.17,0.12502]
[1728664151562,10.66,144.22,144.17,14.16998693]
[1728664151863,10.66,144.22,144.17,10.78502]
[1728664152066,10.66,144.22,144.19,3.468]
[1728664153068,14.1274,144.22,144.19,3.468]
[1728664153870,10.66,144.24,144.2,3.4679]
[1728664154062,10.66,144.23,144.18,16.28]
[1728664154463,16.65,144.25,144.18,5.62]
[1728664155266,3.4673,144.23,144.2,3.4679]
[1728664155467,16.65,144.25,144.18,5.62]
[1728664155967,3.4676,144.22,144.18,9.0882]
[1728664156671,3.4676,144.22,144.19,3.4681]
[1728664157770,16.65,144.25,144.18,5.62]
[1728664157963,1.3908,144.28,144.2,16.65]
[1728664158272,0.12502,144.29,144.21,17.9642]
[1728664158571,3.4661,144.28,144.24,3.4668]
[1728664159461,3.59072,144.29,144.22,5.62]
[1728664159857,0.12502,144.29,144.22,5.62]
[1728664160068,3.466,144.28,144.24,3.4667]
[1728664160471,3.466,144.28,144.22,5.62]
[1728664161358,3.466,144.28,144.25,3.4666]
[1728664162371,0.12502,144.29,144.22,5.62]
[1728664162564,3.59082,144.29,144.26,3.4664]
[1728664162865,0.12502,144.29,144.26,5.62]
[1728664163166,0.12502,144.29,144.26,9.0863]
[1728664163368,0.12502,144.29,144.26,5.62]
[1728664163672,0.12502,144.29,144.26,9.0863]
[1728664164172,0.12502,144.29,144.26,5.62]
[1728664165371,0.12502,144.29,144.27,3.4662]
[1728664167667,0.12502,144.29,144.26,5.62]
[1728664167868,3.59082,144.29,144.26,5.62]
[1728664169768,3.466,144.28,144.26,5.62]
[1728664170474,3.4663,144.27,144.24,5.62]
[1728664170774,0.12502,144.29,144.24,5.62]
[1728664170972,3.4661,144.28,144.24,3.4668]
[1728664171172,3.4661,144.28,144.24,9.0868]
[1728664172770,3.4661,144.28,144.24,5.62]
[1728664172964,0.12502,144.29,144.24,5.62]
[1728664173367,0.12502,144.29,144.27,3.4662]
[1728664176380,0.12502,144.29,144.27,14.1062]
[1728664177174,0.12502,144.29,144.28,14.106]
[1728664177478,0.12502,144.29,144.27,10.64]
[1728664178184,0.12502,144.29,144.05,0.12502]
[1728664178185,16.26,144.28,144.05,0.12502]
[1728664178383,1.3173,144.27,144.13,10.64]
[1728664178677,1.3173,144.27,144.12,1.3175]
[1728664178678,2.8215,144.27,144.18,5.15903342]
[1728664178876,2.8215,144.27,144.13,10.64]
[1728664179081,10.64,144.19,144.13,10.64]
[1728664179271,10.64,144.18,144.13,10.64]
[1728664179477,10.64,144.18,144.12,19.375]
[1728664179676,10.64,144.18,144.12,22.8448]
[1728664180073,5.98,144.21,144.12,8.735]
[1728664180277,14.1084,144.18,144.12,2.755]
[1728664180480,20.1384,144.18,144.12,1.4375]
[1728664180680,16.67,144.18,144.12,1.4375]
[1728664180982,5.98,144.17,144.12,1.4375]
[1728664181185,5.98,144.17,144.09,5.98]
[1728664181482,3.4691,144.15,144.09,9.4503]
[1728664181683,5.98,144.17,144.09,3.4703]
[1728664181879,16.67,144.15,144.08,2.7495]
[1728664183488,3.4694,144.14,144.08,6.2201]
[1728664183789,3.4694,144.14,144.08,2.7495]
[1728664183980,3.4694,144.14,144.09,3.4705]
[1728664184783,18.0183,144.2,144.08,2.7495]
[1728664184784,1.3483,144.2,144.1,16.67]
[1728664185086,5.98,144.19,144.1,16.67]
[1728664185283,5.98,144.19,144.14,3.4693]
[1728664186385,3.4684,144.18,144.14,3.4693]
[1728664186889,16.67,144.22,144.12,16.67]
[1728664187090,3.468,144.2,144.15,3.4689]
[1728664188288,3.468,144.2,144.16,3.4687]
[1728664190094,16.67,144.22,144.16,3.4687]
[1728664190288,3.4683,144.19,144.15,3.469]
[1728664190489,16.67,144.22,144.14,1.355]
[1728664190888,3.4679,144.2,144.16,3.4687]
[1728664191394,3.4679,144.2,144.17,3.4686]
[1728664191586,16.67,144.22,144.15,2.6909]
[1728664191786,3.4679,144.2,144.15,2.6909]
[1728664191990,3.4679,144.2,144.16,3.4688]
[1728664195196,3.4684,144.18,144.15,6.1599]
[1728664195697,16.67,144.22,144.15,2.6909]
[1728664196191,3.4685,144.18,144.15,2.6909]
[1728664196496,16.67,144.2,144.14,1.355]
[1728664196897,3.4687,144.17,144.14,1.355]
[1728664197299,16.67,144.2,144.14,1.355]
[1728664197497,3.469,144.16,144.14,1.355]
[1728664197792,16.67,144.2,144.14,1.355]
[1728664197996,22.65,144.2,144.14,1.355]
[1728664198296,3.4691,144.15,144.14,1.355]
[1728664198490,3.4691,144.15,144.12,9.4497]
[1728664199493,3.4689,144.16,144.12,5.98]
[1728664199692,22.65,144.2,144.12,5.98]
[1728664200398,3.4689,144.16,144.12,5.98]
[1728664201485,16.67,144.19,144.12,5.98]
[1728664201688,3.4695,144.14,144.12,5.98]
[1728664201888,3.4695,144.14,144.11,1.46972]
[1728664202088,16.67,144.16,144.11,0.12502]
[1728664202293,3.4697,144.13,144.11,0.12502]
[1728664203197,16.67,144.16,144.11,0.12502]
[1728664203391,16.67,144.17,144.11,0.12502]
[1728664203799,3.4692,144.15,144.11,0.12502]
[1728664204001,3.4692,144.15,144.12,3.4697]
[1728664205003,3.4692,144.15,144.13,3.4695]
[1728664205201,16.67,144.17,144.11,0.12502]
[1728664205497,3.4689,144.16,144.11,0.12502]
[1728664205805,3.4689,144.16,144.13,3.4694]
[1728664207101,16.67,144.17,144.12,3.4697]
[1728664207301,16.67,144.17,144.11,0.12502]
[1728664207899,3.4694,144.14,144.11,3.59492]
[1728664208695,3.4698,144.12,144.11,0.12502]
[1728664210702,3.4692,144.15,144.12,3.4698]
[1728664210893,16.67,144.17,144.12,3.4698]
[1728664211301,3.4692,144.15,144.12,3.4698]
[1728664214009,3.4692,144.15,144.11,3.59492]
[1728664214217,20.1392,144.15,144.11,3.59492]
[1728664214426,16.67,144.15,144.12,3.4698]
[1728664214717,16.67,144.17,144.11,0.12502]
[1728664215221,3.469,144.16,144.13,3.4695]
[1728664215420,16.67,144.17,144.13,3.4695]
[1728664215723,3.4687,144.17,144.14,3.4692]
[1728664215911,16.67,144.19,144.11,6.04502]
[1728664216108,3.4682,144.19,144.15,3.4689]
[1728664216618,3.4682,144.19,144.12,16.67]
[1728664217021,3.4682,144.19,144.13,5.16175543]
[1728664217220,3.4682,144.19,144.16,3.4688]
[1728664218912,3.4682,144.19,144.12,16.67]
[1728664219107,16.67,144.19,144.11,6.04502]
[1728664219316,16.67,144.19,144.12,5.16313177]
[1728664219518,16.67,144.19,144.14,3.4693]
[1728664219907,3.4685,144.18,144.14,3.4693]
[1728664220312,3.4685,144.18,144.11,6.04502]
[1728664220512,3.4685,144.18,144.15,3.469]
[1728664223023,20.1382,144.19,144.17,3.4686]
[1728664223222,98.93663583,144.21,144.17,3.4686]
[1728664223924,3.4679,144.2,144.17,3.4686]
[1728664224318,0.5027,144.25,144.15,5.92]
[1728664224319,16.79502,144.23,144.15,5.92]
[1728664224526,16.79502,144.23,144.16,1.4337]
[1728664225518,0.12502,144.23,144.16,1.4337]
[1728664225719,0.12502,144.23,144.17,16.67]
[1728664227025,3.59222,144.23,144.17,16.67]
[1728664227327,3.59222,144.23,144.2,3.4678]
[1728664229934,0.12502,144.23,144.2,3.4677]
[1728664231531,0.12502,144.23,144.21,3.4674]
[1728664232116,0.12502,144.23,144.22,3.4674]
[1728664233121,16.79502,144.29,144.26,3.4664]
[1728664233122,0.12502,144.29,144.26,3.4664]
[1728664233322,0.12502,144.29,144.23,7.3152]
[1728664233524,0.12502,144.29,144.23,10.74398158]
[1728664234337,0.12502,144.29,144.25,3.4665]
[1728664234634,3.466,144.28,144.25,3.4665]
[1728664236420,3.466,144.28,144.26,3.4664]
[1728664236621,3.59092,144.29,144.23,7.3152]
[1728664237621,3.59092,144.29,144.26,3.4663]
[1728664237828,3.466,144.28,144.26,3.4663]
[1728664239829,3.4663,144.27,144.24,3.4668]
[1728664240025,3.4663,144.27,144.23,7.3152]
[1728664240832,3.466,144.28,144.25,3.4665]
[1728664241032,3.466,144.28,144.23,7.3152]
[1728664242240,3.466,144.28,144.25,3.4665]
[1728664244239,3.4662,144.27,144.25,3.4665]
[1728664244441,10.65,144.27,144.23,17.9652]
[1728664245133,3.4666,144.26,144.23,21.4322]
[1728664246341,14.1161,144.28,144.25,3.4665]
[1728664246849,3.4663,144.27,144.25,3.4665]
[1728664251248,10.65,144.28,144.23,17.9652]
[1728664251546,3.4665,144.26,144.24,3.4667]
[1728664256447,0.12502,144.29,144.21,1.4143]
[1728664256448,0.12502,144.29,144.21,5.8]
[1728664256635,10.65,144.26,144.21,16.45]
[1728664257243,3.4666,144.26,144.22,10.65]
[1728664257445,10.65,144.27,144.22,10.65]
[1728664258243,10.65,144.27,144.24,3.4667]
[1728664258550,10.65,144.27,144.22,10.65]
[1728664258750,14.1161,144.28,144.25,3.4665]
[1728664259251,3.59092,144.29,144.27,3.4661]
[1728664259651,0.12502,144.29,144.26,10.65]
[1728664259849,0.12502,144.29,144.28,3.466]
[1728664264043,0.12502,144.29,144.28,14.116]
[1728664264248,0.12502,144.35,144.3,10.65]
[1728664264551,10.77502,144.35,144.3,16.45]
[1728664264753,3.4647,144.34,144.31,3.4651]
[1728664267857,10.65,144.33,144.31,3.4651]
[1728664268852,10.77502,144.35,144.3,16.45]
[1728664269157,3.58942,144.35,144.32,3.4649]
[1728664269656,10.77502,144.41,144.34,10.65]
[1728664269856,10.77502,144.41,144.36,10.65]
[1728664270052,14.1137,144.38,144.35,9.1842]
[1728664270358,14.1137,144.38,144.35,5.72]
[1728664271154,3.58792,144.41,144.38,3.4634]
[1728664271349,0.12502,144.41,144.39,10.65]
[1728664271562,0.12502,144.41,144.39,16.37]
[1728664271760,3.58802,144.41,144.39,5.72]
[1728664272259,3.58802,144.41,144.38,5.72]
[1728664272452,3.4632,144.4,144.38,5.72]
[1728664272954,3.4633,144.39,144.38,5.72]
[1728664275758,3.4632,144.4,144.38,5.72]
[1728664277162,3.58792,144.41,144.38,19.8335]
[1728664278864,0.12502,144.41,144.39,3.4633]
[1728664279069,0.12502,144.41,144.38,16.37]
[1728664279269,0.12502,144.41,144.4,3.4631]
[1728664279458,0.12502,144.41,144.4,14.1131]
[1728664279764,10.65,144.46,144.4,10.65]
[1728664279958,3.4622,144.44,144.41,3.4627]